[Event "Titled Tuesday Blitz November 14 Early 2023"]
[White "Arngrimsson, Dagur"]
[Black "Matveeva, Olga"]
[WhiteFideId "2301288"]
[BlackFideId "24107018"]
[WhiteElo "2511"]
[BlackElo "2371"]
[Result "1-0"]
[Round "9"]
[TimeControl "180+1"]
[Date "2023.11.14"]
[WhiteClock "0:01:56"]
[BlackClock "0:00:49"]
[Board "117"]

1. e4 {[%clk 0:03:00]}  c6 {[%clk 0:03:00]} 2. d4 {[%clk 0:02:50]}  d5 {[%clk 0:03:00]} 3. Nc3 {[%clk 0:02:50]}  dxe4 {[%clk 0:02:59]} 4. Nxe4 {[%clk 0:02:51]}  Nf6 {[%clk 0:02:59]} 5. Nxf6+ {[%clk 0:02:40]}  exf6 {[%clk 0:03:00]} 6. Nf3 {[%clk 0:02:39]}  Bd6 {[%clk 0:03:00]} 7. Be3 {[%clk 0:02:37]}  O-O {[%clk 0:02:59]} 8. Qd2 {[%clk 0:02:37]}  Re8 {[%clk 0:02:54]} 9. O-O-O {[%clk 0:02:36]}  Nd7 {[%clk 0:02:55]} 10. h4 {[%clk 0:02:35]}  Nf8 {[%clk 0:02:54]} 11. h5 {[%clk 0:02:35]}  Be6 {[%clk 0:02:52]} 12. Bd3 {[%clk 0:02:33]}  Bxa2 {[%clk 0:02:46]} 13. g4 {[%clk 0:02:30]}  Bd5 {[%clk 0:02:41]} 14. Rh3 {[%clk 0:02:30]}  a5 {[%clk 0:02:15]} 15. g5 {[%clk 0:02:20]}  fxg5 {[%clk 0:02:14]} 16. Nxg5 {[%clk 0:02:15]}  a4 {[%clk 0:02:05]} 17. c4 {[%clk 0:02:10]}  Be6 {[%clk 0:01:55]} 18. h6 {[%clk 0:02:02]}  g6 {[%clk 0:01:37]} 19. Rf3 {[%clk 0:01:57]}  Bg4 {[%clk 0:01:24]} 20. Rxf7 {[%clk 0:01:56]}  Bxd1 {[%clk 0:00:49]} 21. Rg7+ {[%clk 0:01:56]} 1-0


[Site "https://www.chess.com"]

[Event "Titled Tuesday Blitz November 14 Early 2023"]
[White "Rietze, Clemens, Dr."]
[Black "Garrido, Denis"]
[WhiteFideId "24620351"]
[BlackFideId "601217"]
[WhiteElo "2500"]
[BlackElo "2354"]
[Result "1-0"]
[Round "9"]
[TimeControl "180+1"]
[Date "2023.11.14"]
[WhiteClock "0:01:02"]
[BlackClock "0:01:37"]
[Board "119"]

1. d4 {[%clk 0:02:56]}  d5 {[%clk 0:02:59]} 2. c4 {[%clk 0:02:54]}  c6 {[%clk 0:02:59]} 3. Nf3 {[%clk 0:02:54]}  Nf6 {[%clk 0:02:59]} 4. Nc3 {[%clk 0:02:54]}  dxc4 {[%clk 0:02:59]} 5. a4 {[%clk 0:02:54]}  Bf5 {[%clk 0:02:59]} 6. Ne5 {[%clk 0:02:54]}  e6 {[%clk 0:02:59]} 7. g3 {[%clk 0:02:54]}  Bb4 {[%clk 0:02:57]} 8. Bg2 {[%clk 0:02:52]}  Be4 {[%clk 0:02:52]} 9. f3 {[%clk 0:02:46]}  Bg6 {[%clk 0:02:51]} 10. Nxc4 {[%clk 0:02:42]}  c5 {[%clk 0:02:40]} 11. dxc5 {[%clk 0:02:23]}  Qxd1+ {[%clk 0:02:36]} 12. Kxd1 {[%clk 0:02:24]}  Bxc5 {[%clk 0:02:31]} 13. e4 {[%clk 0:02:23]}  Nc6 {[%clk 0:02:30]} 14. Be3 {[%clk 0:02:20]}  Bxe3 {[%clk 0:02:22]} 15. Nxe3 {[%clk 0:02:20]}  Ke7 {[%clk 0:02:21]} 16. Ke2 {[%clk 0:02:19]}  Nd4+ {[%clk 0:02:20]} 17. Kf2 {[%clk 0:02:19]}  Rhd8 {[%clk 0:02:18]} 18. f4 {[%clk 0:02:12]}  Rac8 {[%clk 0:01:50]} 19. e5 {[%clk 0:01:56]}  Nd5 {[%clk 0:01:48]} 20. Bxd5 {[%clk 0:01:41]}  exd5 {[%clk 0:01:49]} 21. Rhd1 {[%clk 0:01:14]}  Nf5 {[%clk 0:01:42]} 22. Nexd5+ {[%clk 0:01:06]}  Kf8 {[%clk 0:01:42]} 23. g4 {[%clk 0:01:02]}  Ne7 {[%clk 0:01:37]} 1-0


[Site "https://www.chess.com"]

[Event "Titled Tuesday Blitz November 14 Early 2023"]
[White "Jakubowska, Anna"]
[Black "Kanyamarala, Trisha"]
[WhiteFideId "1121952"]
[BlackFideId "45004722"]
[WhiteElo "2349"]
[BlackElo "2492"]
[Result "0-1"]
[Round "9"]
[TimeControl "180+1"]
[Date "2023.11.14"]
[WhiteClock "0:01:14"]
[BlackClock "0:00:35"]
[Board "120"]

1. e4 {[%clk 0:03:00]}  c5 {[%clk 0:02:55]} 2. Nc3 {[%clk 0:03:00]}  d6 {[%clk 0:02:53]} 3. g3 {[%clk 0:03:00]}  g6 {[%clk 0:02:52]} 4. Bg2 {[%clk 0:03:00]}  Bg7 {[%clk 0:02:52]} 5. d3 {[%clk 0:03:00]}  Nc6 {[%clk 0:02:51]} 6. Nh3 {[%clk 0:02:59]}  Nf6 {[%clk 0:02:51]} 7. O-O {[%clk 0:03:00]}  O-O {[%clk 0:02:51]} 8. f4 {[%clk 0:03:00]}  Rb8 {[%clk 0:02:48]} 9. f5 {[%clk 0:02:59]}  b5 {[%clk 0:02:46]} 10. g4 {[%clk 0:02:47]}  b4 {[%clk 0:02:35]} 11. Nb1 {[%clk 0:02:47]}  Qb6 {[%clk 0:02:35]} 12. Be3 {[%clk 0:02:44]}  Ne5 {[%clk 0:02:34]} 13. g5 {[%clk 0:02:40]}  Nfg4 {[%clk 0:02:34]} 14. Bf4 {[%clk 0:02:25]}  c4+ {[%clk 0:02:10]} 15. d4 {[%clk 0:02:24]}  gxf5 {[%clk 0:01:56]} 16. Kh1 {[%clk 0:02:16]}  Nc6 {[%clk 0:01:48]} 17. exf5 {[%clk 0:02:14]}  Bxf5 {[%clk 0:01:47]} 18. c3 {[%clk 0:02:09]}  bxc3 {[%clk 0:01:39]} 19. bxc3 {[%clk 0:02:09]}  e5 {[%clk 0:01:23]} 20. Bg3 {[%clk 0:02:05]}  Ne3 {[%clk 0:01:20]} 21. Qf3 {[%clk 0:01:56]}  Nxf1 {[%clk 0:01:17]} 22. Qxf1 {[%clk 0:01:41]}  Bxb1 {[%clk 0:01:14]} 23. d5 {[%clk 0:01:29]}  Ne7 {[%clk 0:01:11]} 24. Nf2 {[%clk 0:01:23]}  f5 {[%clk 0:00:46]} 25. gxf6 {[%clk 0:01:17]}  Rxf6 {[%clk 0:00:46]} 26. Qe2 {[%clk 0:01:17]}  Qb2 {[%clk 0:00:40]} 27. Qg4 {[%clk 0:01:14]}  Qxa1 {[%clk 0:00:35]} 0-1


[Site "https://www.chess.com"]

[Event "Titled Tuesday Blitz November 14 Early 2023"]
[White "KorolDimitriy75"]
[Black "Yurasova, Daria"]
[BlackFideId "34146919"]
[WhiteElo "2342"]
[BlackElo "2465"]
[Result "0-1"]
[Round "9"]
[TimeControl "180+1"]
[Date "2023.11.14"]
[WhiteClock "0:00:05"]
[BlackClock "0:00:26"]
[Board "122"]

1. d4 {[%clk 0:03:00]}  d5 {[%clk 0:02:53]} 2. c4 {[%clk 0:03:01]}  dxc4 {[%clk 0:02:52]} 3. Nf3 {[%clk 0:03:00]}  Nf6 {[%clk 0:02:52]} 4. Nc3 {[%clk 0:03:00]}  e6 {[%clk 0:02:49]} 5. e4 {[%clk 0:03:00]}  c5 {[%clk 0:02:45]} 6. Bxc4 {[%clk 0:02:59]}  cxd4 {[%clk 0:02:45]} 7. Qxd4 {[%clk 0:02:59]}  Qxd4 {[%clk 0:02:43]} 8. Nxd4 {[%clk 0:03:00]}  Bb4 {[%clk 0:02:43]} 9. f3 {[%clk 0:03:00]}  O-O {[%clk 0:02:43]} 10. Ke2 {[%clk 0:02:51]}  Bd7 {[%clk 0:02:40]} 11. Be3 {[%clk 0:02:48]}  Nc6 {[%clk 0:02:38]} 12. Rhd1 {[%clk 0:02:46]}  Bxc3 {[%clk 0:02:37]} 13. bxc3 {[%clk 0:02:46]}  Ne5 {[%clk 0:02:33]} 14. Bb3 {[%clk 0:02:23]}  Rfc8 {[%clk 0:02:29]} 15. Rac1 {[%clk 0:02:23]}  Nc4 {[%clk 0:02:25]} 16. Bg5 {[%clk 0:01:55]}  e5 {[%clk 0:02:10]} 17. Nf5 {[%clk 0:01:37]}  Bxf5 {[%clk 0:02:07]} 18. exf5 {[%clk 0:01:38]}  h6 {[%clk 0:02:07]} 19. Bxf6 {[%clk 0:01:33]}  gxf6 {[%clk 0:02:07]} 20. Rd7 {[%clk 0:01:33]}  b5 {[%clk 0:02:03]} 21. Rcd1 {[%clk 0:01:22]}  a5 {[%clk 0:01:58]} 22. Rb7 {[%clk 0:01:18]}  a4 {[%clk 0:01:55]} 23. Bxc4 {[%clk 0:01:09]}  Rxc4 {[%clk 0:01:56]} 24. Rdd7 {[%clk 0:01:07]}  Rf8 {[%clk 0:01:44]} 25. Kd2 {[%clk 0:00:40]}  Rc5 {[%clk 0:01:42]} 26. a3 {[%clk 0:00:33]}  h5 {[%clk 0:01:34]} 27. g4 {[%clk 0:00:25]}  hxg4 {[%clk 0:01:33]} 28. fxg4 {[%clk 0:00:26]}  e4 {[%clk 0:01:20]} 29. h3 {[%clk 0:00:21]}  e3+ {[%clk 0:01:20]} 30. Kd3 {[%clk 0:00:14]}  e2 {[%clk 0:01:12]} 31. Re7 {[%clk 0:00:14]}  e1=Q {[%clk 0:00:38]} 32. Rxe1 {[%clk 0:00:14]}  Rfc8 {[%clk 0:00:33]} 33. Ree7 {[%clk 0:00:12]}  Rxc3+ {[%clk 0:00:31]} 34. Kd4 {[%clk 0:00:09]}  R8c4+ {[%clk 0:00:25]} 35. Kd5 {[%clk 0:00:05]}  Rd3# {[%clk 0:00:26]} 0-1


[Site "https://www.chess.com"]

[Event "Titled Tuesday Blitz November 14 Early 2023"]
[White "Lebedev, Artem S."]
[Black "Mazurkiewicz, Michal"]
[WhiteFideId "34272747"]
[BlackFideId "1124943"]
[WhiteElo "2341"]
[BlackElo "2438"]
[Result "1-0"]
[Round "9"]
[TimeControl "180+1"]
[Date "2023.11.14"]
[WhiteClock "0:00:19"]
[BlackClock "0:00:18"]
[Board "123"]

1. e4 {[%clk 0:03:00]}  d6 {[%clk 0:02:59]} 2. d4 {[%clk 0:02:58]}  Nf6 {[%clk 0:03:00]} 3. Nc3 {[%clk 0:02:56]}  c6 {[%clk 0:03:00]} 4. a4 {[%clk 0:02:53]}  e5 {[%clk 0:03:00]} 5. Nf3 {[%clk 0:02:51]}  Qc7 {[%clk 0:02:55]} 6. Bc4 {[%clk 0:02:47]}  Be7 {[%clk 0:02:55]} 7. O-O {[%clk 0:02:44]}  O-O {[%clk 0:02:55]} 8. Bg5 {[%clk 0:02:42]}  Nbd7 {[%clk 0:02:53]} 9. dxe5 {[%clk 0:02:30]}  dxe5 {[%clk 0:02:53]} 10. Qe2 {[%clk 0:02:30]}  Nc5 {[%clk 0:02:50]} 11. Bh4 {[%clk 0:02:15]}  Ne6 {[%clk 0:02:30]} 12. Bg3 {[%clk 0:02:07]}  Bd6 {[%clk 0:02:05]} 13. Rad1 {[%clk 0:01:56]}  Nh5 {[%clk 0:02:05]} 14. Nh4 {[%clk 0:01:11]}  Nhf4 {[%clk 0:01:53]} 15. Qd2 {[%clk 0:01:01]}  g6 {[%clk 0:01:42]} 16. Qxd6 {[%clk 0:00:59]}  Qb6 {[%clk 0:01:24]} 17. Bxe6 {[%clk 0:00:55]}  Nxe6 {[%clk 0:01:15]} 18. Bxe5 {[%clk 0:00:48]}  f6 {[%clk 0:01:03]} 19. Bg3 {[%clk 0:00:41]}  Qxb2 {[%clk 0:01:03]} 20. Qd2 {[%clk 0:00:30]}  Rd8 {[%clk 0:00:51]} 21. Qe3 {[%clk 0:00:26]}  Bd7 {[%clk 0:00:48]} 22. Rb1 {[%clk 0:00:20]}  Qxc2 {[%clk 0:00:18]} 23. Rfc1 {[%clk 0:00:19]} 1-0


[Site "https://www.chess.com"]

[Event "Titled Tuesday Blitz November 14 Early 2023"]
[White "Haitin, Ilja"]
[Black "rikchessmx"]
[WhiteFideId "4501764"]
[WhiteElo "2415"]
[BlackElo "2327"]
[Result "1-0"]
[Round "9"]
[TimeControl "180+1"]
[Date "2023.11.14"]
[WhiteClock "0:00:05"]
[BlackClock "0:00:00"]
[Board "127"]

1. Nf3 {[%clk 0:02:49]}  d5 {[%clk 0:02:58]} 2. g3 {[%clk 0:02:48]}  c6 {[%clk 0:02:58]} 3. Bg2 {[%clk 0:02:48]}  Bg4 {[%clk 0:02:57]} 4. O-O {[%clk 0:02:49]}  e6 {[%clk 0:02:57]} 5. c4 {[%clk 0:02:49]}  Nd7 {[%clk 0:02:55]} 6. h3 {[%clk 0:02:50]}  Bh5 {[%clk 0:02:54]} 7. cxd5 {[%clk 0:02:50]}  exd5 {[%clk 0:02:54]} 8. d4 {[%clk 0:02:50]}  Ngf6 {[%clk 0:02:53]} 9. Ne5 {[%clk 0:02:48]}  Nxe5 {[%clk 0:02:52]} 10. dxe5 {[%clk 0:02:48]}  Nd7 {[%clk 0:02:52]} 11. f4 {[%clk 0:02:46]}  Bc5+ {[%clk 0:02:51]} 12. Kh1 {[%clk 0:02:41]}  f5 {[%clk 0:02:49]} 13. exf6 {[%clk 0:02:29]}  Nxf6 {[%clk 0:02:49]} 14. b4 {[%clk 0:02:12]}  Bb6 {[%clk 0:02:44]} 15. Bb2 {[%clk 0:02:12]}  O-O {[%clk 0:02:44]} 16. Nd2 {[%clk 0:02:12]}  Qe7 {[%clk 0:02:43]} 17. Nf3 {[%clk 0:02:11]}  Qxb4 {[%clk 0:02:39]} 18. Rb1 {[%clk 0:02:03]}  Bg6 {[%clk 0:02:36]} 19. a3 {[%clk 0:01:12]}  Qa5 {[%clk 0:02:18]} 20. Rc1 {[%clk 0:01:10]}  Ne4 {[%clk 0:02:17]} 21. Kh2 {[%clk 0:01:07]}  Bf2 {[%clk 0:02:13]} 22. Rxf2 {[%clk 0:01:02]}  Nxf2 {[%clk 0:02:12]} 23. Qd4 {[%clk 0:01:03]}  Rf7 {[%clk 0:01:57]} 24. Qxf2 {[%clk 0:00:58]}  Be4 {[%clk 0:01:47]} 25. Ng5 {[%clk 0:00:45]}  Re7 {[%clk 0:01:45]} 26. Nxe4 {[%clk 0:00:26]}  dxe4 {[%clk 0:01:45]} 27. Qd4 {[%clk 0:00:21]}  Rd8 {[%clk 0:01:40]} 28. Qc4+ {[%clk 0:00:19]}  Kh8 {[%clk 0:01:32]} 29. Bxe4 {[%clk 0:00:19]}  Rd2 {[%clk 0:01:18]} 30. Be5 {[%clk 0:00:18]}  Qxa3 {[%clk 0:01:15]} 31. Qc3 {[%clk 0:00:08]}  Qa2 {[%clk 0:01:10]} 32. Bf3 {[%clk 0:00:07]}  h5 {[%clk 0:01:10]} 33. h4 {[%clk 0:00:07]}  Rxe2+ {[%clk 0:01:08]} 34. Bxe2 {[%clk 0:00:07]}  Qxe2+ {[%clk 0:01:09]} 35. Kh3 {[%clk 0:00:06]}  Qg4+ {[%clk 0:01:09]} 36. Kg2 {[%clk 0:00:07]}  Qe2+ {[%clk 0:01:09]} 37. Kg1 {[%clk 0:00:07]}  Rd7 {[%clk 0:01:07]} 38. Re1 {[%clk 0:00:07]}  Rd1 {[%clk 0:01:07]} 39. Rxd1 {[%clk 0:00:05]}  Qxd1+ {[%clk 0:01:08]} 40. Kf2 {[%clk 0:00:05]}  Qe2+ {[%clk 0:00:00]} 41. Kxe2 {[%clk 0:00:05]} 1-0


[Site "https://www.chess.com"]

[Event "Titled Tuesday Blitz November 14 Early 2023"]
[White "Osmonbekov, Talaibek"]
[Black "Mayaud, Raphael"]
[WhiteFideId "2017253"]
[BlackFideId "627151"]
[WhiteElo "2320"]
[BlackElo "2413"]
[Result "0-1"]
[Round "9"]
[TimeControl "180+1"]
[Date "2023.11.14"]
[WhiteClock "0:00:00"]
[BlackClock "0:00:05"]
[Board "128"]

1. d4 {[%clk 0:02:55]}  Nf6 {[%clk 0:02:57]} 2. Nc3 {[%clk 0:02:55]}  d5 {[%clk 0:02:53]} 3. Bf4 {[%clk 0:02:55]}  c6 {[%clk 0:02:53]} 4. e3 {[%clk 0:02:56]}  Bf5 {[%clk 0:02:53]} 5. Nf3 {[%clk 0:02:55]}  e6 {[%clk 0:02:53]} 6. Ne5 {[%clk 0:02:55]}  Nbd7 {[%clk 0:02:52]} 7. g4 {[%clk 0:02:55]}  Nxe5 {[%clk 0:02:34]} 8. gxf5 {[%clk 0:02:51]}  Ned7 {[%clk 0:02:14]} 9. fxe6 {[%clk 0:02:51]}  fxe6 {[%clk 0:02:15]} 10. Rg1 {[%clk 0:02:42]}  g6 {[%clk 0:01:54]} 11. Bh3 {[%clk 0:02:39]}  Qe7 {[%clk 0:01:54]} 12. Qd3 {[%clk 0:02:26]}  e5 {[%clk 0:01:51]} 13. dxe5 {[%clk 0:02:21]}  Nxe5 {[%clk 0:01:50]} 14. Qe2 {[%clk 0:02:16]}  Bg7 {[%clk 0:01:44]} 15. O-O-O {[%clk 0:02:13]}  O-O {[%clk 0:01:44]} 16. Bxe5 {[%clk 0:01:31]}  Qxe5 {[%clk 0:01:43]} 17. f4 {[%clk 0:01:31]}  Qe7 {[%clk 0:01:40]} 18. f5 {[%clk 0:01:31]}  Rae8 {[%clk 0:01:30]} 19. Rd3 {[%clk 0:01:22]}  gxf5 {[%clk 0:00:49]} 20. Bxf5 {[%clk 0:01:22]}  Kh8 {[%clk 0:00:49]} 21. Qg2 {[%clk 0:01:08]}  Rf7 {[%clk 0:00:48]} 22. Qh3 {[%clk 0:01:05]}  Qe5 {[%clk 0:00:38]} 23. Bg6 {[%clk 0:00:55]}  Ref8 {[%clk 0:00:30]} 24. Bxf7 {[%clk 0:00:54]}  Rxf7 {[%clk 0:00:31]} 25. Rf1 {[%clk 0:00:46]}  b5 {[%clk 0:00:29]} 26. Rf5 {[%clk 0:00:33]}  Qe7 {[%clk 0:00:23]} 27. Qf3 {[%clk 0:00:31]}  b4 {[%clk 0:00:20]} 28. Ne2 {[%clk 0:00:30]}  Rf8 {[%clk 0:00:20]} 29. Rd1 {[%clk 0:00:23]}  Re8 {[%clk 0:00:15]} 30. Rf1 {[%clk 0:00:20]}  Ne4 {[%clk 0:00:13]} 31. Nd4 {[%clk 0:00:15]}  c5 {[%clk 0:00:10]} 32. Ne2 {[%clk 0:00:08]}  Nd6 {[%clk 0:00:08]} 33. Rxd5 {[%clk 0:00:05]}  Nc4 {[%clk 0:00:08]} 34. c3 {[%clk 0:00:02]}  bxc3 {[%clk 0:00:06]} 35. Nxc3 {[%clk 0:00:00]}  Qb7 {[%clk 0:00:05]} 0-1


[Site "https://www.chess.com"]

[Event "Titled Tuesday Blitz November 14 Early 2023"]
[White "IsaqueGoncalvesSanto"]
[Black "Nastase, Robert-Paul"]
[BlackFideId "1221175"]
[WhiteElo "1920"]
[BlackElo "2407"]
[Result "0-1"]
[Round "9"]
[TimeControl "180+1"]
[Date "2023.11.14"]
[WhiteClock "0:00:22"]
[BlackClock "0:00:15"]
[Board "130"]

1. d4 {[%clk 0:03:00]}  a6 {[%clk 0:03:00]} 2. c4 {[%clk 0:03:00]}  c6 {[%clk 0:03:00]} 3. Nc3 {[%clk 0:02:59]}  d5 {[%clk 0:03:00]} 4. Bf4 {[%clk 0:02:57]}  dxc4 {[%clk 0:02:57]} 5. a4 {[%clk 0:02:55]}  e6 {[%clk 0:02:42]} 6. e3 {[%clk 0:02:54]}  b5 {[%clk 0:02:04]} 7. axb5 {[%clk 0:02:53]}  cxb5 {[%clk 0:02:05]} 8. Nxb5 {[%clk 0:02:53]}  axb5 {[%clk 0:02:06]} 9. Rxa8 {[%clk 0:02:52]}  Bb4+ {[%clk 0:02:07]} 10. Ke2 {[%clk 0:02:48]}  Nc6 {[%clk 0:02:05]} 11. f3 {[%clk 0:02:41]}  Nge7 {[%clk 0:02:02]} 12. Kf2 {[%clk 0:02:34]}  O-O {[%clk 0:02:00]} 13. b3 {[%clk 0:02:26]}  Nd5 {[%clk 0:01:51]} 14. Bg3 {[%clk 0:02:17]}  c3 {[%clk 0:01:14]} 15. Bxb5 {[%clk 0:02:14]}  Nxe3 {[%clk 0:00:47]} 16. Kxe3 {[%clk 0:02:03]}  Qg5+ {[%clk 0:00:47]} 17. Kf2 {[%clk 0:01:36]}  Qxb5 {[%clk 0:00:48]} 18. Ne2 {[%clk 0:01:35]}  Ba6 {[%clk 0:00:33]} 19. Rxf8+ {[%clk 0:01:31]}  Kxf8 {[%clk 0:00:34]} 20. Nc1 {[%clk 0:00:54]}  Ke8 {[%clk 0:00:25]} 21. d5 {[%clk 0:00:48]}  exd5 {[%clk 0:00:21]} 22. Re1+ {[%clk 0:00:46]}  Kf8 {[%clk 0:00:20]} 23. Qc2 {[%clk 0:00:23]}  Bc5+ {[%clk 0:00:16]} 24. Re3 {[%clk 0:00:22]}  Qf1# {[%clk 0:00:15]} 0-1


[Site "https://www.chess.com"]

[Event "Titled Tuesday Blitz November 14 Early 2023"]
[White "Kleiman, Jake"]
[Black "Sarkar, Justin"]
[WhiteFideId "2020041"]
[BlackFideId "2010011"]
[WhiteElo "2596"]
[BlackElo "2253"]
[Result "1/2-1/2"]
[Round "9"]
[TimeControl "180+1"]
[Date "2023.11.14"]
[WhiteClock "0:00:39"]
[BlackClock "0:00:03"]
[Board "131"]

1. e4 {[%clk 0:03:00]}  e5 {[%clk 0:02:55]} 2. Nf3 {[%clk 0:03:01]}  Nc6 {[%clk 0:02:55]} 3. Bb5 {[%clk 0:03:01]}  a6 {[%clk 0:02:50]} 4. Ba4 {[%clk 0:03:00]}  Nf6 {[%clk 0:02:49]} 5. O-O {[%clk 0:03:01]}  Nxe4 {[%clk 0:02:43]} 6. d4 {[%clk 0:03:00]}  b5 {[%clk 0:02:42]} 7. Bb3 {[%clk 0:03:00]}  d5 {[%clk 0:02:42]} 8. dxe5 {[%clk 0:03:01]}  Be6 {[%clk 0:02:40]} 9. c3 {[%clk 0:02:58]}  Bc5 {[%clk 0:02:35]} 10. Nbd2 {[%clk 0:02:53]}  O-O {[%clk 0:02:33]} 11. Qe2 {[%clk 0:02:51]}  Nxd2 {[%clk 0:02:26]} 12. Bxd2 {[%clk 0:02:50]}  Bg4 {[%clk 0:02:11]} 13. h3 {[%clk 0:02:38]}  Bxf3 {[%clk 0:02:08]} 14. Qxf3 {[%clk 0:02:38]}  Nxe5 {[%clk 0:02:07]} 15. Qg3 {[%clk 0:02:24]}  Nc4 {[%clk 0:02:02]} 16. Bf4 {[%clk 0:02:21]}  Bd6 {[%clk 0:01:44]} 17. Bxd6 {[%clk 0:02:21]}  Qxd6 {[%clk 0:01:29]} 18. Qxd6 {[%clk 0:02:21]}  cxd6 {[%clk 0:01:29]} 19. Rad1 {[%clk 0:02:21]}  Nxb2 {[%clk 0:01:22]} 20. Rxd5 {[%clk 0:02:20]}  Rfd8 {[%clk 0:01:15]} 21. Re1 {[%clk 0:02:13]}  Kf8 {[%clk 0:01:11]} 22. Re4 {[%clk 0:01:39]}  Rac8 {[%clk 0:01:01]} 23. Red4 {[%clk 0:01:25]}  Rxc3 {[%clk 0:00:48]} 24. Rxd6 {[%clk 0:01:24]}  Rxd6 {[%clk 0:00:47]} 25. Rxd6 {[%clk 0:01:25]}  a5 {[%clk 0:00:46]} 26. Rd8+ {[%clk 0:01:18]}  Ke7 {[%clk 0:00:45]} 27. Rb8 {[%clk 0:01:19]}  b4 {[%clk 0:00:23]} 28. Rb7+ {[%clk 0:01:16]}  Kd6 {[%clk 0:00:22]} 29. Bxf7 {[%clk 0:01:12]}  Rc1+ {[%clk 0:00:14]} 30. Kh2 {[%clk 0:01:11]}  Rc7 {[%clk 0:00:14]} 31. Rxc7 {[%clk 0:01:02]}  Kxc7 {[%clk 0:00:14]} 32. Kg3 {[%clk 0:01:00]}  a4 {[%clk 0:00:13]} 33. Kf3 {[%clk 0:00:56]}  b3 {[%clk 0:00:07]} 34. axb3 {[%clk 0:00:55]}  a3 {[%clk 0:00:07]} 35. b4 {[%clk 0:00:56]}  Na4 {[%clk 0:00:05]} 36. Ke4 {[%clk 0:00:48]}  Nc3+ {[%clk 0:00:02]} 37. Ke5 {[%clk 0:00:48]}  a2 {[%clk 0:00:02]} 38. Bxa2 {[%clk 0:00:48]}  Nxa2 {[%clk 0:00:02]} 39. Ke6 {[%clk 0:00:49]}  Nxb4 {[%clk 0:00:01]} 40. Kf7 {[%clk 0:00:50]}  Nd3 {[%clk 0:00:01]} 41. Kxg7 {[%clk 0:00:48]}  Nxf2 {[%clk 0:00:01]} 42. Kxh7 {[%clk 0:00:49]}  Kd6 {[%clk 0:00:01]} 43. Kg6 {[%clk 0:00:47]}  Ke7 {[%clk 0:00:01]} 44. Kg7 {[%clk 0:00:45]}  Ke6 {[%clk 0:00:02]} 45. Kg6 {[%clk 0:00:41]}  Ke7 {[%clk 0:00:02]} 46. h4 {[%clk 0:00:40]}  Kf8 {[%clk 0:00:02]} 47. Kf5 {[%clk 0:00:38]}  Kg7 {[%clk 0:00:02]} 48. g4 {[%clk 0:00:39]}  Nxg4 {[%clk 0:00:02]} 49. Kxg4 {[%clk 0:00:39]}  Kg6 {[%clk 0:00:02]} 50. h5+ {[%clk 0:00:40]}  Kh6 {[%clk 0:00:02]} 51. Kg3 {[%clk 0:00:39]}  Kh7 {[%clk 0:00:03]} 52. h6 {[%clk 0:00:39]}  Kxh6 {[%clk 0:00:03]} 1/2-1/2


[Site "https://www.chess.com"]

[Event "Titled Tuesday Blitz November 14 Early 2023"]
[White "HeroRubiksCube"]
[Black "Friedland, Moshe"]
[BlackFideId "2812843"]
[WhiteElo "2492"]
[BlackElo "2324"]
[Result "1-0"]
[Round "9"]
[TimeControl "180+1"]
[Date "2023.11.14"]
[WhiteClock "0:01:47"]
[BlackClock "0:01:25"]
[Board "132"]

1. e4 {[%clk 0:03:00]}  c5 {[%clk 0:02:57]} 2. Nf3 {[%clk 0:03:00]}  d6 {[%clk 0:02:57]} 3. d4 {[%clk 0:03:00]}  cxd4 {[%clk 0:02:58]} 4. Nxd4 {[%clk 0:03:01]}  Nf6 {[%clk 0:02:58]} 5. Nc3 {[%clk 0:03:01]}  a6 {[%clk 0:02:59]} 6. Be2 {[%clk 0:03:02]}  e5 {[%clk 0:02:59]} 7. Nb3 {[%clk 0:03:02]}  Be7 {[%clk 0:02:59]} 8. Bg5 {[%clk 0:03:03]}  Be6 {[%clk 0:02:58]} 9. Bxf6 {[%clk 0:03:02]}  Bxf6 {[%clk 0:02:59]} 10. Nd5 {[%clk 0:03:03]}  Nc6 {[%clk 0:02:54]} 11. Qd3 {[%clk 0:03:00]}  Bxd5 {[%clk 0:02:54]} 12. Qxd5 {[%clk 0:02:57]}  O-O {[%clk 0:02:47]} 13. O-O {[%clk 0:02:56]}  a5 {[%clk 0:02:39]} 14. Rad1 {[%clk 0:02:49]}  a4 {[%clk 0:02:33]} 15. Nc1 {[%clk 0:02:33]}  Qb6 {[%clk 0:02:15]} 16. Nd3 {[%clk 0:02:19]}  Nd4 {[%clk 0:02:04]} 17. Bg4 {[%clk 0:01:55]}  Nxc2 {[%clk 0:01:36]} 18. Rc1 {[%clk 0:01:55]}  Nd4 {[%clk 0:01:33]} 19. Rc3 {[%clk 0:01:51]}  h5 {[%clk 0:01:30]} 20. Bxh5 {[%clk 0:01:47]}  Ne2+ {[%clk 0:01:25]} 21. Bxe2 {[%clk 0:01:47]} 1-0


[Site "https://www.chess.com"]

[Event "Titled Tuesday Blitz November 14 Early 2023"]
[White "LangesNasenhaar"]
[Black "Spichkin, Alexander"]
[BlackFideId "4144074"]
[WhiteElo "2426"]
[BlackElo "2304"]
[Result "0-1"]
[Round "9"]
[TimeControl "180+1"]
[Date "2023.11.14"]
[WhiteClock "0:00:11"]
[BlackClock "0:00:08"]
[Board "133"]

1. d4 {[%clk 0:02:55]}  e6 {[%clk 0:02:58]} 2. e4 {[%clk 0:02:54]}  d5 {[%clk 0:02:57]} 3. Nc3 {[%clk 0:02:54]}  Nf6 {[%clk 0:02:53]} 4. e5 {[%clk 0:02:54]}  Nfd7 {[%clk 0:02:52]} 5. f4 {[%clk 0:02:54]}  c5 {[%clk 0:02:48]} 6. Nce2 {[%clk 0:02:55]}  Nc6 {[%clk 0:02:47]} 7. Nf3 {[%clk 0:02:55]}  Qb6 {[%clk 0:02:45]} 8. c3 {[%clk 0:02:55]}  f6 {[%clk 0:02:45]} 9. h4 {[%clk 0:02:55]}  cxd4 {[%clk 0:02:42]} 10. cxd4 {[%clk 0:02:52]}  Bb4+ {[%clk 0:02:43]} 11. Bd2 {[%clk 0:02:50]}  Nxd4 {[%clk 0:02:02]} 12. Nexd4 {[%clk 0:02:35]}  fxe5 {[%clk 0:01:43]} 13. fxe5 {[%clk 0:02:35]}  O-O {[%clk 0:01:42]} 14. Bxb4 {[%clk 0:02:30]}  Qxb4+ {[%clk 0:01:41]} 15. Qd2 {[%clk 0:02:30]}  Qb6 {[%clk 0:01:41]} 16. Bd3 {[%clk 0:02:22]}  Kh8 {[%clk 0:01:30]} 17. O-O-O {[%clk 0:02:21]}  Nc5 {[%clk 0:01:23]} 18. Kb1 {[%clk 0:02:16]}  Bd7 {[%clk 0:01:21]} 19. Bc2 {[%clk 0:02:11]}  Ba4 {[%clk 0:01:17]} 20. b3 {[%clk 0:02:02]}  Bd7 {[%clk 0:01:13]} 21. Rhf1 {[%clk 0:01:54]}  a5 {[%clk 0:01:11]} 22. Ka1 {[%clk 0:01:45]}  a4 {[%clk 0:00:52]} 23. b4 {[%clk 0:01:45]}  Ne4 {[%clk 0:00:47]} 24. Bxe4 {[%clk 0:01:41]}  dxe4 {[%clk 0:00:48]} 25. Ng5 {[%clk 0:01:42]}  a3 {[%clk 0:00:38]} 26. Nf7+ {[%clk 0:01:29]}  Kg8 {[%clk 0:00:37]} 27. Nd6 {[%clk 0:01:30]}  Ba4 {[%clk 0:00:33]} 28. Rxf8+ {[%clk 0:01:23]}  Rxf8 {[%clk 0:00:32]} 29. Nb3 {[%clk 0:01:17]}  Qd8 {[%clk 0:00:23]} 30. Re1 {[%clk 0:01:11]}  Qxh4 {[%clk 0:00:22]} 31. Nc5 {[%clk 0:01:01]}  Rf2 {[%clk 0:00:18]} 32. Qc3 {[%clk 0:00:41]}  e3 {[%clk 0:00:13]} 33. Nxe6 {[%clk 0:00:37]}  Rc2 {[%clk 0:00:12]} 34. Qxe3 {[%clk 0:00:15]}  Qxb4 {[%clk 0:00:11]} 35. Rb1 {[%clk 0:00:13]}  Rb2 {[%clk 0:00:10]} 36. Qc1 {[%clk 0:00:13]}  Bc2 {[%clk 0:00:08]} 37. Rxb2 {[%clk 0:00:13]}  axb2+ {[%clk 0:00:09]} 38. Qxb2 {[%clk 0:00:11]}  Qe1+ {[%clk 0:00:09]} 39. Qc1 {[%clk 0:00:11]}  Qxc1# {[%clk 0:00:08]} 0-1


[Site "https://www.chess.com"]